fUSD/lending_fUSD_20251026
["ID","MTS","AMOUNT","RATE_DAILY","PERIOD"]
[392408651,1761442233280,-151.0,0.00032852,2]
[392408652,1761442233290,-574.12855637,0.00032852,2]
[392408653,1761442233299,-151.0,0.00032852,2]
[392408654,1761442233308,-151.0,0.00032852,2]
[392408655,1761442233317,-151.0,0.00032852,2]
[392408656,1761442233327,-151.0,0.00032852,2]
[392408657,1761442233336,-151.0,0.00032852,2]
[392408658,1761442233349,-151.0,0.00032852,2]
[392408659,1761442233358,-151.0,0.00032852,2]
[392408660,1761442233368,-721.12765535,0.00032852,2]
[392408661,1761442233378,-356.291,0.00032871,33]
[392408662,1761442233387,-3639.53819374,0.00032873,2]
[392408663,1761442233397,-286.0,0.00032877,30]
[392408664,1761442233407,-286.0,0.00032877,30]
[392408665,1761442233417,-286.0,0.00032877,30]
[392408666,1761442233427,-286.0,0.00032877,30]
[392408667,1761442233437,-286.0,0.00032877,30]
[392408668,1761442233446,-286.0,0.00032877,30]
[392408669,1761442233456,-286.0,0.00032877,30]
[392408670,1761442233466,-286.0,0.00032877,30]
[392408671,1761442233476,-286.0,0.00032877,30]
[392408672,1761442233486,-286.0,0.00032877,30]
[392408673,1761442233496,-286.0,0.00032877,30]
[392408674,1761442233507,-286.0,0.00032877,30]
[392408675,1761442233516,-286.0,0.00032877,30]
[392408676,1761442233526,-286.0,0.00032877,30]
[392408677,1761442233536,-211.0,0.00032877,30]
[392408678,1761442233546,-211.0,0.00032877,30]
[392408679,1761442233555,-211.0,0.00032877,30]
[392408680,1761442233565,-211.0,0.00032877,30]
[392408681,1761442233575,-211.0,0.00032877,30]
[392408682,1761442233585,-211.0,0.00032877,30]
[392408683,1761442233595,-211.0,0.00032877,30]
[392408684,1761442233605,-211.0,0.00032877,30]
[392408685,1761442233615,-211.0,0.00032877,30]
[392408686,1761442233624,-211.0,0.00032877,30]
[392408687,1761442233634,-211.0,0.00032877,30]
[392408688,1761442233644,-211.0,0.00032877,30]
[392408689,1761442233653,-211.0,0.00032877,30]
[392408690,1761442233662,-283.0,0.00032877,30]
[392408691,1761442233672,-283.0,0.00032877,30]
[392408692,1761442233681,-283.0,0.00032877,30]
[392408693,1761442233690,-283.0,0.00032877,30]
[392408694,1761442233699,-283.0,0.00032877,30]
[392408695,1761442233708,-283.0,0.00032877,30]
[392408696,1761442233718,-283.0,0.00032877,30]
[392408697,1761442233727,-283.0,0.00032877,30]
[392408698,1761442233737,-283.0,0.00032877,30]
[392408699,1761442233746,-283.0,0.00032877,30]
[392408700,1761442233756,-283.0,0.00032877,30]
[392408701,1761442233766,-283.0,0.00032877,30]
[392408702,1761442233775,-283.0,0.00032877,30]
[392408703,1761442233784,-283.0,0.00032877,30]
[392408704,1761442233793,-241.0,0.00032877,30]
[392408705,1761442233802,-241.0,0.00032877,30]
[392408706,1761442233812,-241.0,0.00032877,30]
[392408707,1761442233821,-241.0,0.00032877,30]
[392408708,1761442233830,-241.0,0.00032877,30]
[392408709,1761442233839,-241.0,0.00032877,30]
[392408710,1761442233848,-241.0,0.00032877,30]
[392408711,1761442233857,-241.0,0.00032877,30]
[392408712,1761442233867,-241.0,0.00032877,30]
[392408713,1761442233878,-241.0,0.00032877,30]
[392408714,1761442233887,-241.0,0.00032877,30]
[392408715,1761442233897,-283.0,0.00032877,30]
[392408716,1761442233908,-283.0,0.00032877,30]
[392408717,1761442233918,-283.0,0.00032877,30]
[392408718,1761442233928,-283.0,0.00032877,30]
[392408719,1761442233938,-283.0,0.00032877,30]
[392408720,1761442233947,-283.0,0.00032877,30]
[392408721,1761442233957,-283.0,0.00032877,30]
[392408722,1761442233966,-283.0,0.00032877,30]
[392408723,1761442233975,-283.0,0.00032877,30]
[392408724,1761442233984,-283.0,0.00032877,30]
[392408725,1761442233994,-283.0,0.00032877,30]
[392408726,1761442234004,-283.0,0.00032877,30]
[392408727,1761442234013,-283.0,0.00032877,30]
[392408728,1761442234023,-283.0,0.00032877,30]
[392408729,1761442234032,-208.0,0.00032877,30]
[392408730,1761442234042,-208.0,0.00032877,30]
[392408731,1761442234051,-208.0,0.00032877,30]
[392408732,1761442234060,-208.0,0.00032877,30]
[392408733,1761442234069,-208.0,0.00032877,30]
[392408734,1761442234079,-208.0,0.00032877,30]
[392408735,1761442234088,-208.0,0.00032877,30]
[392408736,1761442234097,-208.0,0.00032877,30]
[392408737,1761442234107,-208.0,0.00032877,30]
[392408738,1761442234117,-208.0,0.00032877,30]
[392408739,1761442234130,-208.0,0.00032877,30]
[392408740,1761442234139,-208.0,0.00032877,30]
[392408741,1761442234150,-208.0,0.00032877,30]
[392408742,1761442234160,-286.0,0.00032877,30]
[392408743,1761442234170,-286.0,0.00032877,30]
[392408744,1761442234179,-286.0,0.00032877,30]
[392408745,1761442234189,-286.0,0.00032877,30]
[392408746,1761442234201,-286.0,0.00032877,30]
[392408747,1761442234210,-286.0,0.00032877,30]
[392408748,1761442234219,-286.0,0.00032877,30]
[392408749,1761442234228,-286.0,0.00032877,30]
[392408750,1761442234237,-286.0,0.00032877,30]
[392408751,1761442234246,-286.0,0.00032877,30]
[392408752,1761442234255,-286.0,0.00032877,30]
[392408753,1761442234264,-286.0,0.00032877,30]
[392408754,1761442234273,-286.0,0.00032877,30]
[392408755,1761442234282,-286.0,0.00032877,30]
[392408756,1761442234291,-226.0,0.00032877,30]
[392408757,1761442234300,-226.0,0.00032877,30]
[392408758,1761442234310,-226.0,0.00032877,30]
[392408759,1761442234319,-226.0,0.00032877,30]
[392408760,1761442234328,-226.0,0.00032877,30]
[392408761,1761442234337,-226.0,0.00032877,30]
[392408762,1761442234346,-226.0,0.00032877,30]
[392408763,1761442234355,-226.0,0.00032877,30]
[392408764,1761442234364,-226.0,0.00032877,30]
[392408765,1761442234373,-226.0,0.00032877,30]
[392408766,1761442234382,-226.0,0.00032877,30]
[392408767,1761442234391,-287.0,0.00032877,30]
[392408768,1761442234400,-287.0,0.00032877,30]
[392408769,1761442234409,-287.0,0.00032877,30]
[392408770,1761442234418,-287.0,0.00032877,30]
[392408771,1761442234427,-287.0,0.00032877,30]
[392408772,1761442234436,-287.0,0.00032877,30]
[392408773,1761442234445,-287.0,0.00032877,30]
[392408774,1761442234454,-287.0,0.00032877,30]
[392408775,1761442234463,-287.0,0.00032877,30]
[392408776,1761442234472,-177.78447305,0.00032877,30]
[392408777,1761442234489,-109.21552695,0.00032877,30]
[392408778,1761442234499,-287.0,0.00032877,30]
[392408779,1761442234508,-287.0,0.00032877,30]
[392408780,1761442234517,-287.0,0.00032877,30]
[392408781,1761442234526,-287.0,0.00032877,30]
[392408782,1761442234535,-199.0,0.00032877,30]
[392408783,1761442234544,-199.0,0.00032877,30]
[392408784,1761442234553,-199.0,0.00032877,30]
[392408785,1761442234562,-199.0,0.00032877,30]
[392408786,1761442234571,-199.0,0.00032877,30]
[392408787,1761442234580,-199.0,0.00032877,30]
[392408788,1761442234592,-199.0,0.00032877,30]
[392408789,1761442234601,-199.0,0.00032877,30]
[392408790,1761442234612,-199.0,0.00032877,30]
[392408791,1761442234623,-199.0,0.00032877,30]
[392408792,1761442234633,-199.0,0.00032877,30]
[392408793,1761442234642,-199.0,0.00032877,30]
[392408794,1761442234652,-199.0,0.00032877,30]
[392408795,1761442234662,-287.0,0.00032877,30]
[392408796,1761442234671,-287.0,0.00032877,30]
[392408797,1761442234680,-287.0,0.00032877,30]
[392408798,1761442234689,-287.0,0.00032877,30]
[392408799,1761442234698,-287.0,0.00032877,30]
[392408800,1761442234707,-287.0,0.00032877,30]
[392408801,1761442234716,-287.0,0.00032877,30]
[392408802,1761442234725,-287.0,0.00032877,30]
[392408803,1761442234734,-99.35758861,0.00032877,30]
[392408848,1761442240098,-356.28758565,0.00032813,2]
[392408872,1761442245938,-22.95057244,0.00032813,2]
[392408873,1761442245948,-187.64241139,0.00032877,30]
[392408874,1761442245957,-287.0,0.00032877,30]
[392408875,1761442245966,-287.0,0.00032877,30]
[392408876,1761442245975,-287.0,0.00032877,30]
[392408877,1761442245984,-287.0,0.00032877,30]
[392408878,1761442245993,-287.0,0.00032877,30]
[392408879,1761442246003,-225.0,0.00032877,30]
[392408880,1761442246012,-225.0,0.00032877,30]
[392408881,1761442246020,-225.0,0.00032877,30]
[392408882,1761442246029,-210.68506928,0.00032877,30]
[392408909,1761442451089,162.1145146,0.00036909,60]
[392408911,1761442487918,187.8111677,0.00036909,120]
[392408969,1761442649023,1000.0,0.00036909,60]
[392408972,1761442661739,1000.0,0.00036909,120]
[392408974,1761442674475,1000.0,0.00036909,60]
[392408977,1761442687209,1000.0,0.00036909,120]
[392408978,1761442699951,1000.0,0.00036909,120]
[392408979,1761442707821,1000.0,0.00036909,60]
[392408981,1761442720864,1000.0,0.00036909,60]
[392408983,1761442733258,1000.0,0.00036909,60]
[392408987,1761442745997,1000.0,0.00036909,60]
[392408997,1761442758736,1000.0,0.00036909,120]
[392408998,1761442771455,1000.0,0.00036909,60]
[392409039,1761442822392,1000.0,0.00036909,60]
[392409089,1761443016968,207.0,0.00036909,120]
[392409098,1761443043479,1329.9,0.00031507,120]
[392409099,1761443045053,570.0,0.00036909,120]
[392409100,1761443046631,314.1705015,0.0002796,120]
[392409143,1761443330729,-151.21,0.00015838,2]
[392409144,1761443330751,-124.2643872,0.00017158,2]
[392409168,1761443432056,-26.9456128,0.00017158,2]
[392409169,1761443432066,-151.21,0.00018478,2]
[392409170,1761443432075,-151.21,0.00019798,2]
[392409171,1761443432085,-151.21,0.00021117,2]
[392409172,1761443432094,-151.21,0.00022437,2]
[392409173,1761443432103,-151.21,0.00023757,2]
[392409174,1761443432112,-151.21,0.00025077,2]
[392409175,1761443432122,-171.85,0.00025418,2]
[392409176,1761443432132,-151.21,0.00026397,2]
[392409177,1761443432143,-212.56438025,0.00027397,2]
[392409178,1761443432152,-151.21,0.00027717,2]
[392409179,1761443432162,-151.21,0.00029036,2]
[392409180,1761443432171,-151.21,0.00030356,2]
[392409181,1761443432181,-1067.293317,0.00031066,2]
[392409182,1761443432191,-476.4830027,0.00031219,2]
[392409183,1761443432201,-1000.0,0.0003124,2]
[392409184,1761443432210,-152.0,0.00031387,3]
[392409185,1761443432219,-1600.0,0.00031495,3]
[392409186,1761443432229,-700.0,0.00031496,7]
[392409187,1761443432238,-500.0,0.00031496,7]
[392409188,1761443432249,-500.0,0.00031496,7]
[392409189,1761443432259,-300.0,0.00031672,7]
[392409190,1761443432268,-151.21,0.00031676,2]
[392409191,1761443432277,-169.54,0.00031693,2]
[392409192,1761443432287,-207.04,0.00031768,120]
[392409193,1761443432297,-160.92,0.00031818,2]
[392409194,1761443432306,-400.0,0.00031935,3]
[392409195,1761443432316,-400.0,0.00031937,3]
[392409196,1761443432325,-321.0,0.00031937,3]
[392409197,1761443432335,-999.0,0.00031938,3]
[392409198,1761443432344,-152.0,0.00031942,4]
[392409199,1761443432354,-250.0,0.0003195,2]
[392409200,1761443432363,-183.58421202,0.00032,120]
[392409201,1761443432372,-221.72672,0.00032,2]
[392409202,1761443432382,-160.92,0.00032289,2]
[392409203,1761443432391,-786.87965439,0.00032298,2]
[392409204,1761443432400,-308.47431793,0.00032298,2]
[392409205,1761443432409,-650.43940968,0.00032318,7]
[392409206,1761443432544,-49.56059032,0.00032318,7]
[392409207,1761443432554,-168.0,0.00032477,7]
[392409208,1761443432564,-152.0,0.00032498,5]
[392409209,1761443432573,-132.02974001,0.0003254,2]
[392409210,1761443432584,-89.69697999,0.0003254,2]
[392409211,1761443432593,-221.72672,0.0003258,2]
[392409212,1761443432602,-221.72672,0.0003258,2]
[392409213,1761443432611,-634.92360604,0.00032604,2]
[392409214,1761443432620,-168.0,0.00032627,2]
[392409215,1761443432629,-168.0,0.00032631,2]
[392409216,1761443432638,-221.72672,0.000327,2]
[392409217,1761443432647,-588.0,0.00032753,7]
[392409218,1761443432656,-160.92,0.00032759,2]
[392409219,1761443432665,-295.887,0.00032759,33]
[392409220,1761443432675,-180.797,0.00032759,33]
[392409221,1761443432683,-221.72672,0.0003283,2]
[392409222,1761443432692,-322.6107,0.00032855,2]
[392409223,1761443432701,-574.12855637,0.00032855,2]
[392409224,1761443432710,-818.91762933,0.00032855,2]
[392409225,1761443432720,-200.0,0.00032855,2]
[392409226,1761443432729,-1257.58038,0.00032873,2]
[392409227,1761443432738,-1266.84283592,0.00032875,2]
[392409228,1761443432749,-234.74143428,0.00032875,2]
[392409229,1761443432758,-172.37924651,0.00032875,2]
[392409230,1761443432769,-1736.55047373,0.00032875,2]
[392409231,1761443432819,-177.45730116,0.00032875,2]
[392409232,1761443432831,-1132.82163806,0.00032875,2]
[392409233,1761443432842,-3472.43885324,0.00032875,2]
[392409248,1761443437802,-500.0,0.00032874,2]
[392409249,1761443437811,-500.0,0.00032874,2]
[392409250,1761443437820,-500.0,0.00032874,2]
[392409251,1761443437830,-500.0,0.00032874,2]
[392409252,1761443437839,-169.98295695,0.00032874,2]
[392409253,1761443437848,-500.0,0.00032874,2]
[392409254,1761443437857,-10744.0894053,0.00032875,2]
[392409255,1761443437866,-421.0972868,0.00032875,2]
[392409256,1761443437874,-159.8466026,0.00032875,2]
[392409257,1761443437884,-14.31493072,0.00032877,30]
[392409258,1761443437892,-225.0,0.00032877,30]
[392409259,1761443437901,-225.0,0.00032877,30]
[392409260,1761443437912,-225.0,0.00032877,30]
[392409261,1761443437921,-225.0,0.00032877,30]
[392409262,1761443437930,-225.0,0.00032877,30]
[392409263,1761443437939,-225.0,0.00032877,30]
[392409264,1761443437948,-225.0,0.00032877,30]
[392409265,1761443437957,-286.0,0.00032877,30]
[392409266,1761443437966,-286.0,0.00032877,30]
[392409267,1761443437975,-286.0,0.00032877,30]
[392409268,1761443437983,-286.0,0.00032877,30]
[392409269,1761443437993,-286.0,0.00032877,30]
[392409270,1761443438002,-286.0,0.00032877,30]
[392409271,1761443438010,-286.0,0.00032877,30]
[392409272,1761443438019,-286.0,0.00032877,30]
[392409273,1761443438028,-286.0,0.00032877,30]
[392409274,1761443438036,-286.0,0.00032877,30]
[392409275,1761443438044,-203.0,0.00032877,30]
[392409276,1761443438052,-203.0,0.00032877,30]
[392409277,1761443438060,-203.0,0.00032877,30]
[392409278,1761443438069,-203.0,0.00032877,30]
[392409280,1761443438077,-203.0,0.00032877,30]
[392409282,1761443438086,-203.0,0.00032877,30]
[392409284,1761443438094,-203.0,0.00032877,30]
[392409286,1761443438103,-203.0,0.00032877,30]
[392409288,1761443438112,-153.0,0.00032877,30]
[392409290,1761443438121,-153.0,0.00032877,30]
[392409292,1761443438130,-153.0,0.00032877,30]
[392409294,1761443438139,-2071.80762668,0.00032877,2]
[392409296,1761443438149,-170.41344749,0.00032878,2]
[392409298,1761443438159,-170.41344749,0.00032888,2]
[392409300,1761443438168,-3338.67868358,0.00032889,2]
[392409302,1761443438179,-223.29460514,0.00032889,2]
[392409304,1761443438189,-2500.0,0.00032889,2]
[392409306,1761443438198,-8005.07166935,0.0003289,2]
[392409308,1761443438209,-589.5101,0.0003289,2]
[392409310,1761443438218,-1000.0,0.0003289,2]
[392409312,1761443438228,-5000.0,0.00032899,2]
[392409314,1761443438237,-1105.13947725,0.000329,2]
[392409316,1761443438247,-221.72672,0.000329,2]
[392409318,1761443438257,-521.72672,0.000329,2]
[392409320,1761443438266,-170.41344749,0.00032901,2]
[392409322,1761443438275,-904.0,0.00032906,2]
[392409324,1761443438284,-1189.502,0.00032906,2]
[392409326,1761443438293,-6478.733,0.00032906,2]
[392409328,1761443438302,-559.251,0.00032906,2]
[392409330,1761443438311,-3518.234,0.00032906,2]
[392409332,1761443438321,-2792.509,0.00032906,2]
[392409334,1761443438330,-379.23815809,0.00032925,2]
[392409336,1761443438339,-379.23815809,0.00032959,2]
[392409338,1761443438348,-500.0,0.00032973,5]
[392409340,1761443438357,-503.76050532,0.00032973,5]
[392409341,1761443438366,-911.35,0.0003298,2]
[392409344,1761443438376,-10682.0330754,0.0003298,3]
[392409345,1761443438384,-283.35043179,0.00032988,7]
[392409347,1761443438395,-801.938272,0.00032989,9]
[392409349,1761443438404,-152.439922,0.00032989,9]
[392409351,1761443438413,-503.625576,0.00032989,9]
[392409353,1761443438422,-500.0,0.00032989,9]
[392409355,1761443438431,-500.0,0.00032989,9]
[392409357,1761443438439,-508.38504713,0.00032989,9]
[392409359,1761443438449,-500.0,0.00032989,9]
[392409361,1761443438458,-500.0,0.00032989,9]
[392409363,1761443438467,-500.0,0.00032989,9]
[392409365,1761443438477,-500.0,0.00032989,9]
[392409367,1761443438486,-500.0,0.00032989,9]
[392409369,1761443438496,-500.0,0.00032989,9]
[392409371,1761443438506,-500.0,0.00032989,9]
[392409373,1761443438515,-500.0,0.00032989,9]
[392409374,1761443438524,-500.0,0.00032989,9]
[392409376,1761443438534,-500.0,0.00032989,9]
[392409378,1761443438543,-500.0,0.00032989,9]
[392409380,1761443438552,-555.36523736,0.00032989,9]
[392409382,1761443438561,-500.0,0.00032989,9]
[392409384,1761443438570,-500.0,0.00032989,9]
[392409386,1761443438579,-659.83,0.00032989,9]
[392409388,1761443438588,-500.0,0.00032989,9]
[392409390,1761443438597,-500.0,0.00032989,9]
[392409392,1761443438606,-500.0,0.00032989,9]
[392409394,1761443438615,-500.0,0.00032989,9]
[392409396,1761443438625,-500.0,0.00032989,9]
[392409398,1761443438634,-500.0,0.00032989,9]
[392409400,1761443438642,-500.0,0.00032989,9]
[392409402,1761443438651,-500.0,0.00032989,9]
[392409403,1761443438660,-500.0,0.00032989,9]
[392409405,1761443438669,-500.0,0.00032989,9]
[392409407,1761443438678,-500.0,0.00032989,9]
[392409409,1761443438687,-280.37602774,0.00032989,9]
[392409411,1761443438701,-219.62397226,0.00032989,9]
[392409414,1761443438710,-500.0,0.00032989,9]
[392409416,1761443438719,-500.0,0.00032989,9]
[392409417,1761443438729,-481.51360134,0.00032989,9]
[392409418,1761443438747,-18.48639866,0.00032989,9]
[392409419,1761443438756,-500.0,0.00032989,9]
[392409420,1761443438765,-500.0,0.00032989,9]
[392409421,1761443438775,-500.0,0.00032989,9]
[392409422,1761443438918,-287.33,0.00032989,14]
[392409423,1761443438928,-500.0,0.00032989,9]
[392409424,1761443438938,-500.0,0.00032989,9]
[392409425,1761443438947,-500.0,0.00032989,9]
[392409426,1761443438957,-500.0,0.00032989,9]
[392409427,1761443438967,-500.0,0.00032989,9]
[392409428,1761443438975,-500.0,0.00032989,9]
[392409429,1761443438984,-538.62,0.00032989,9]
[392409430,1761443438993,-278.64044256,0.00032989,7]
[392409431,1761443439003,-500.0,0.00032989,9]
[392409432,1761443439012,-129.95451961,0.00032989,7]
[392409433,1761443439024,-500.44768451,0.00032989,7]
[392409434,1761443439034,-500.0,0.00032989,9]
[392409435,1761443439043,-500.0,0.00032989,9]
[392409436,1761443439052,-500.0,0.00032989,9]
[392409437,1761443439064,-500.0,0.00032989,9]
[392409438,1761443439074,-500.0,0.00032989,9]
[392409439,1761443439083,-139.02869853,0.00032989,2]
[392409440,1761443439095,-360.97130147,0.00032989,2]
[392409441,1761443439105,-270.63515819,0.00032989,9]
[392409442,1761443439114,-61.91350359,0.00032989,9]
[392409445,1761443440026,-438.08649641,0.00032989,9]
[392409446,1761443440039,-500.0,0.00032989,9]
[392409447,1761443440049,-565.35,0.00032989,2]
[392409448,1761443440058,-500.0,0.00032989,9]
[392409449,1761443440067,-37.46270661,0.00032989,9]
[392409450,1761443440083,-462.53729339,0.00032989,9]
[392409451,1761443440092,-188.46270661,0.00032989,9]
[392409452,1761443440241,-311.53729339,0.00032989,9]
[392409453,1761443440251,-500.0,0.00032989,9]
[392409454,1761443440261,-18.07365703,0.00032989,9]
[392409455,1761443440272,-481.92634297,0.00032989,9]
[392409456,1761443440282,-500.0,0.00032989,9]
[392409457,1761443440292,-500.0,0.00032989,2]
[392409458,1761443440301,-141.53578393,0.00032989,9]
[392409459,1761443440312,-358.46421607,0.00032989,9]
[392409460,1761443440321,-500.0,0.00032989,9]
[392409461,1761443440331,-404.75112342,0.00032989,9]
[392409462,1761443440382,-21.61299706,0.00032989,9]
[392409466,1761443443814,-73.63587952,0.00032989,9]
[392409467,1761443443824,-500.0,0.00032989,9]
[392409468,1761443443835,-500.0,0.00032989,9]
[392409469,1761443443849,-285.63413048,0.00032989,9]
[392409470,1761443443867,-214.36586952,0.00032989,9]
[392409471,1761443443877,-172.88019606,0.00032989,9]
[392409472,1761443443887,-500.0,0.00032989,9]
[392409473,1761443443896,-500.0,0.00032989,9]
[392409474,1761443443905,-300.0,0.00032989,2]
[392409475,1761443443914,-500.0,0.00032989,9]
[392409476,1761443443923,-500.0,0.00032989,9]
[392409477,1761443443931,-500.0,0.00032989,9]
[392409478,1761443443942,-311.8348095,0.00032989,9]
[392409479,1761443443951,-500.0,0.00032989,9]
[392409480,1761443443962,-500.0,0.00032989,9]
[392409481,1761443443973,-500.0,0.00032989,9]
[392409482,1761443443982,-500.0,0.00032989,9]
[392409483,1761443443992,-500.0,0.00032989,9]
[392409484,1761443444003,-500.0,0.00032989,9]
[392409485,1761443444012,-500.0,0.00032989,9]
[392409486,1761443444021,-500.0,0.00032989,9]
[392409487,1761443444032,-500.0,0.00032989,9]
[392409488,1761443444041,-500.0,0.00032989,9]
[392409489,1761443444051,-500.0,0.00032989,9]
[392409490,1761443444060,-500.0,0.00032989,9]
[392409491,1761443444069,-500.0,0.00032989,9]
[392409492,1761443444078,-500.0,0.00032989,9]
[392409493,1761443444087,-500.0,0.00032989,9]
[392409494,1761443444096,-500.0,0.00032989,9]
[392409495,1761443444106,-500.0,0.00032989,9]
[392409496,1761443444115,-500.0,0.00032989,9]
[392409497,1761443444124,-500.0,0.00032989,9]
[392409498,1761443444134,-500.0,0.00032989,9]
[392409499,1761443444143,-21.75366601,0.00032989,9]
[392409500,1761443444155,-573.36445173,0.00032989,9]
[392409501,1761443444164,-500.0,0.00032989,9]
[392409502,1761443444173,-500.0,0.00032989,9]
[392409503,1761443444182,-537.23,0.00032989,9]
[392409504,1761443444191,-500.0,0.00032989,9]
[392409506,1761443444200,-500.0,0.00032989,9]
[392409507,1761443444209,-500.0,0.00032989,9]
[392409508,1761443444218,-600.82,0.00032989,9]
[392409509,1761443444227,-500.0,0.00032989,9]
[392409510,1761443444236,-316.83864957,0.00032989,9]
[392409511,1761443444256,-183.16135043,0.00032989,9]
[392409512,1761443444264,-500.0,0.00032989,9]
[392409513,1761443444274,-500.0,0.00032989,9]
[392409514,1761443444283,-500.0,0.00032989,9]
[392409515,1761443444292,-500.0,0.00032989,9]
[392409516,1761443444301,-500.0,0.00032989,9]
[392409517,1761443444310,-500.0,0.00032989,9]
[392409518,1761443444319,-342.87272413,0.00032989,9]
[392409519,1761443444344,-157.12727587,0.00032989,9]
[392409520,1761443444354,-500.0,0.00032989,9]
[392409521,1761443444363,-500.0,0.00032989,9]
[392409522,1761443444373,-500.0,0.00032989,9]
[392409523,1761443444383,-500.0,0.00032989,9]
[392409524,1761443444393,-500.0,0.00032989,9]
[392409525,1761443444404,-500.0,0.00032989,9]
[392409526,1761443444415,-587.7370082,0.00032989,9]
[392409527,1761443444426,-183.87945096,0.00032989,9]
[392409528,1761443444436,-500.0,0.00032989,9]
[392409529,1761443444444,-500.0,0.00032989,9]
[392409530,1761443444454,-500.0,0.00032989,9]
[392409531,1761443444474,-500.0,0.00032989,9]
[392409532,1761443444484,-931.68,0.00032989,9]
[392409533,1761443444493,-500.0,0.00032989,9]
[392409534,1761443444502,-500.0,0.00032989,9]
[392409535,1761443444513,-500.0,0.00032989,9]
[392409536,1761443444523,-500.0,0.00032989,9]
[392409537,1761443444531,-500.0,0.00032989,9]
[392409538,1761443444541,-545.9423403,0.00032989,9]
[392409539,1761443444552,-162.40522235,0.00032989,9]
[392409540,1761443444561,-168.81548756,0.00032989,9]
[392409541,1761443444570,-500.0,0.00032989,9]
[392409542,1761443444579,-500.0,0.00032989,9]
[392409543,1761443444588,-500.0,0.00032989,9]
[392409544,1761443444597,-500.0,0.00032989,9]
[392409545,1761443444606,-500.0,0.00032989,9]
[392409546,1761443444615,-500.0,0.00032989,9]
[392409547,1761443444623,-500.0,0.00032989,9]
[392409548,1761443444632,-500.0,0.00032989,9]
[392409549,1761443444641,-500.0,0.00032989,9]
[392409550,1761443444650,-500.0,0.00032989,9]
[392409551,1761443444659,-500.0,0.00032989,9]
[392409552,1761443444667,-500.0,0.00032989,9]
[392409553,1761443444676,-500.0,0.00032989,9]
[392409554,1761443444687,-500.0,0.00032989,9]
[392409555,1761443444698,-500.0,0.00032989,9]
[392409556,1761443444708,-408.47163779,0.00032989,9]
[392409557,1761443444717,-500.0,0.00032989,9]
[392409558,1761443444727,-500.0,0.00032989,9]
[392409559,1761443444736,-544.68564526,0.00032989,9]
[392409560,1761443444746,-500.0,0.00032989,9]
[392409561,1761443444756,-500.0,0.00032989,9]
[392409562,1761443444765,-610.93880322,0.00032989,9]
[392409563,1761443444775,-500.0,0.00032989,9]
[392409564,1761443444785,-424.16874371,0.00032989,9]
[392409565,1761443444797,-500.0,0.00032989,9]
[392409566,1761443444806,-535.0,0.00032989,9]
[392409567,1761443444815,-500.0,0.00032989,9]
[392409568,1761443444830,-500.0,0.00032989,9]
[392409569,1761443444842,-500.0,0.00032989,9]
[392409570,1761443444852,-175.73070445,0.00032989,9]